bitfinex-derivatives/quotes_ETHF0:USTF0_20250903
["timestamp","ask_amount","ask_price","bid_price","bid_amount"]
[1756925583586,0.9134,4465.0,4464.9,1.7272833]
[1756925584393,1.028,4465.0,4464.9,1.7272833]
[1756925584587,1.028,4465.0,4464.9,1.0362833]
[1756925584777,1.028,4465.0,4464.9,1.2310833]
[1756925585095,0.307,4464.6,4464.5,1.0362833]
[1756925585293,1.88610467,4464.6,4464.5,1.0362833]
[1756925585499,2.11210467,4464.6,4464.4,1.24180136]
[1756925585699,0.802,4464.5,4464.4,1.62650136]
[1756925585911,0.6874,4464.5,4464.4,1.93280136]
[1756925586199,0.802,4464.5,4464.4,1.93280136]
[1756925586400,1.69370467,4464.5,4464.0,3.5563]
[1756925586699,0.6874,4464.4,4464.3,1.43660136]
[1756925586900,0.6874,4464.4,4464.3,1.74290136]
[1756925587398,0.307,4464.3,4464.0,3.5141]
[1756925587700,0.6874,4464.3,4464.2,0.691]
[1756925588000,1.28559756,4464.3,4464.2,0.691]
[1756925588392,0.78659756,4464.3,4464.2,0.691]
[1756925590102,1.09359756,4464.3,4464.2,0.691]
[1756925591604,0.59819756,4464.3,4464.2,0.691]
[1756925592897,0.80399756,4464.3,4464.2,0.691]
[1756925593290,1.10409756,4464.3,4464.2,0.691]
[1756925593992,0.80399756,4464.3,4464.2,0.691]
[1756925594200,0.59819756,4464.3,4464.2,0.691]
[1756925595103,0.80399756,4464.3,4464.2,0.691]
[1756925595400,1.10409756,4464.3,4464.2,0.691]
[1756925598407,1.29919756,4464.3,4464.2,0.691]
[1756925599207,0.701,4464.3,4464.2,0.691]
[1756925599403,1.29896439,4464.3,4464.2,0.691]
[1756925602297,1.29896439,4464.3,4464.2,0.1948]
[1756925602503,0.4009,4464.1,4464.0,3.9341]
[1756925602705,1.29896439,4464.1,4464.0,3.9341]
[1756925603105,1.29896439,4464.1,4464.0,4.1385]
[1756925603607,1.3297417,4464.1,4464.0,4.1385]
[1756925604408,0.6287417,4464.1,4464.0,4.256]
[1756925606207,1.1346417,4464.1,4464.0,4.256]
[1756925606809,1.3297417,4464.1,4464.0,4.256]
[1756925607806,1.3297417,4464.1,4464.0,3.4057]
[1756925608008,1.3297417,4464.1,4464.0,3.2078]
[1756925609298,1.3297417,4464.1,4464.0,3.4057]
[1756925609699,1.3297417,4464.1,4464.0,3.9125]
[1756925610206,1.3297417,4464.1,4464.0,4.03]
[1756925610399,0.6287417,4464.1,4464.0,4.03]
[1756925614409,0.62950088,4464.1,4464.0,5.27180136]
[1756925615505,1.19870467,4465.1,4464.0,10.43521272]
[1756925615707,1.19870467,4465.4,4465.2,0.4023]
[1756925615907,0.5059,4465.5,4465.4,0.4023]
[1756925616107,0.5059,4465.5,4465.4,0.7047]
[1756925616601,0.5059,4465.5,4465.4,3.9125]
[1756925617405,0.5059,4465.5,4465.4,5.33770703]
[1756925617610,0.5059,4465.5,4465.4,5.15430136]
[1756925619413,0.2058,4465.5,4465.4,5.15430136]
[1756925619613,0.5059,4465.5,4465.4,5.15430136]
[1756925620212,0.5059,4465.8,4465.7,0.4023]
[1756925620411,0.5059,4465.8,4465.7,0.7047]
[1756925620715,0.701,4465.8,4465.7,0.7047]
[1756925625816,0.701,4465.8,4465.4,4.44960136]
[1756925626119,0.7897,4465.5,4465.4,3.2078]
[1756925627220,1.98840467,4465.5,4465.4,3.2078]
[1756925627520,2.58617924,4465.5,4465.4,3.2078]
[1756925627921,2.58617924,4465.5,4465.4,3.3964]
[1756925629118,2.58617924,4465.5,4465.4,3.9042]
[1756925629621,2.81217924,4465.5,4465.4,3.9042]
[1756925632024,2.81217924,4465.5,4465.4,3.3964]
[1756925632222,2.81217924,4465.5,4465.4,3.2078]
[1756925632423,0.674,4464.8,4464.7,3.9042]
[1756925632624,1.27177457,4464.8,4464.7,3.9042]
[1756925633626,0.78837457,4464.8,4464.7,3.9042]
[1756925634124,1.27177457,4464.8,4464.7,3.9042]
[1756925634326,1.27177457,4464.8,4464.7,3.3964]
[1756925634623,1.27177457,4464.8,4464.7,0.1886]
[1756925634922,0.674,4464.7,4464.6,0.1886]
[1756925635123,1.27177457,4464.7,4464.6,0.5009]
[1756925636429,1.27177457,4464.7,4464.6,0.6964]
[1756925636723,1.49777457,4464.7,4464.6,0.6964]
[1756925638431,1.49777457,4464.7,4464.6,3.9042]
[1756925640931,0.82377457,4464.7,4464.6,3.9042]
[1756925641234,0.59777457,4464.7,4464.6,3.9042]
[1756925641526,0.226,4465.0,4464.9,0.3841]
[1756925641727,1.30640626,4465.0,4464.9,1.93820136]
[1756925641917,1.49850626,4465.0,4464.9,1.93820136]
[1756925642216,1.27250626,4465.0,4464.9,1.93820136]
[1756925642421,0.59850626,4465.0,4464.9,1.93820136]
[1756925642623,1.08040626,4465.0,4464.9,1.93820136]
[1756925643027,1.27250626,4465.0,4464.9,1.93820136]
[1756925644330,1.27250626,4465.0,4464.6,3.2078]
[1756925644331,1.38820626,4465.0,4464.6,3.2078]
[1756925644521,0.674,4464.7,4464.6,3.3964]
[1756925644724,1.27250626,4464.7,4464.6,3.3964]
[1756925644933,1.27250626,4464.7,4464.6,3.9042]
[1756925645137,0.59850626,4464.7,4464.6,3.9042]
[1756925645436,0.59850626,4464.9,4464.6,3.5919]
[1756925645634,0.4166,4464.9,4464.8,1.62590136]
[1756925645835,0.4166,4464.9,4464.8,1.93820136]
[1756925646034,0.82476652,4464.9,4464.8,1.93820136]
[1756925647530,0.59876652,4464.9,4464.8,1.73096692]
[1756925649736,1.27276652,4464.9,4464.8,1.73096692]
[1756925650638,0.59876652,4464.9,4464.8,1.73096692]
[1756925650839,1.08066652,4464.9,4464.8,1.73096692]
[1756925653343,0.59876652,4464.9,4464.8,1.73096692]
[1756925653538,3.2078,4465.6,4465.5,0.1201]
[1756925653840,3.2078,4465.6,4465.5,1.85906692]
[1756925653841,3.80625565,4465.6,4465.5,1.85906692]
[1756925654041,3.99635565,4465.6,4465.5,1.85906692]
[1756925654337,4.29025565,4465.6,4465.5,1.85906692]
[1756925655445,1.08245565,4465.6,4465.5,1.85906692]
[1756925657439,1.27485565,4465.6,4465.5,1.23806692]
[1756925657640,0.2939,4465.4,4465.2,1.33176692]
[1756925657940,0.7945,4465.0,4464.9,3.4113]
[1756925658142,1.39295565,4465.0,4464.9,3.4113]
[1756925658341,1.39295565,4465.0,4464.9,0.2035]
[1756925658646,0.2939,4464.9,4464.7,0.2972]
[1756925658849,0.98095565,4464.8,4464.7,0.5007]
[1756925659151,1.27485565,4464.8,4464.7,0.5007]
[1756925659647,0.6764,4464.7,4464.6,1.73896692]
[1756925659841,1.27485565,4464.7,4464.6,1.73896692]
[1756925661248,1.27485565,4464.7,4464.6,0.7044]
[1756925661547,1.27485565,4464.7,4464.6,1.44176692]
[1756925662348,1.27485565,4464.7,4464.6,1.73896692]
[1756925663141,1.27485565,4464.7,4464.6,0.2035]
[1756925663446,1.27485565,4464.7,4464.6,1.23806692]
[1756925663854,1.27485565,4464.7,4464.6,1.73896692]
[1756925665149,0.59845565,4464.7,4464.6,1.73896692]
[1756925665348,1.27485565,4464.7,4464.6,1.73896692]
[1756925666556,0.59845565,4464.7,4464.6,1.73896692]
[1756925666748,0.78855565,4464.7,4464.6,1.73896692]
[1756925666950,1.08245565,4464.7,4464.6,1.73896692]
[1756925667653,0.78855565,4464.7,4464.6,1.73896692]
[1756925667851,0.59845565,4464.7,4464.6,1.73896692]
[1756925668353,1.27485565,4464.7,4464.6,1.73896692]
[1756925671663,0.59845565,4464.7,4464.6,1.73896692]
[1756925671958,0.59845565,4464.7,4464.6,1.96496692]
[1756925672856,0.59762507,4464.7,4464.6,1.96496692]
[1756925678667,0.78772507,4464.7,4464.6,1.96496692]
[1756925678871,1.27402507,4464.7,4464.6,1.96496692]
[1756925679262,1.27402507,4464.7,4464.6,1.73896692]
[1756925679462,1.27402507,4464.7,4464.6,0.7044]
[1756925679761,1.27402507,4464.7,4464.6,1.73896692]
[1756925681368,0.59762507,4464.7,4464.6,1.73896692]
[1756925681572,0.484,4465.7,4465.6,0.7044]
[1756925681773,0.484,4465.7,4465.6,1.73896692]
[1756925682771,0.1901,4465.7,4465.6,1.73896692]
[1756925682972,0.1929,4466.0,4465.9,0.4108]
[1756925683271,0.1929,4466.0,4465.9,1.73176692]
[1756925683272,0.6998,4466.0,4465.9,1.73176692]
[1756925684069,0.8171,4466.0,4465.9,1.73176692]
[1756925684373,0.6998,4465.8,4465.7,1.03456692]
[1756925684872,0.6998,4465.8,4465.7,1.52616692]
[1756925688873,0.6998,4465.8,4465.7,1.73176692]
[1756925689072,1.6946033,4466.1,4466.0,0.8214]
[1756925689276,1.6946033,4466.1,4466.0,1.85596692]
[1756925689476,0.4951,4466.1,4466.0,1.85596692]
[1756925691378,3.2078,4466.9,4466.2,0.4108]
[1756925691379,0.3022,4466.4,4466.2,0.4108]
[1756925691677,0.4951,4466.4,4466.3,1.73176692]
[1756925691870,0.4951,4466.4,4466.3,1.91243331]
[1756925692075,1.1995033,4466.6,4466.4,0.2864]
[1756925692076,0.3022,4466.6,4466.4,0.2864]
[1756925692266,0.3022,4466.6,4466.3,1.44536692]
[1756925692267,1.1995033,4466.8,4466.5,3.7428]
[1756925692474,1.6946033,4466.9,4466.8,0.2864]
[1756925692671,0.31132,4467.1,4466.8,0.6972]
[1756925692979,1.01112,4467.1,4467.0,1.73176692]
[1756925693477,1.60368463,4467.1,4467.0,1.73176692]
[1756925694379,0.3976,4466.6,4466.5,3.6994]
[1756925694579,1.29236463,4466.6,4466.5,3.905]
[1756925694773,1.29236463,4466.6,4466.5,4.0292]
[1756925695276,0.78546463,4466.6,4466.5,4.0292]
[1756925695477,1.08766463,4466.6,4466.5,4.0292]
[1756925696973,1.29236463,4466.6,4466.5,3.905]
[1756925697175,1.08766463,4466.6,4466.5,4.0292]
[1756925697981,1.29236463,4466.6,4466.5,3.905]
[1756925698371,1.29236463,4466.6,4466.5,3.413]
[1756925698569,0.1173,4466.5,4466.0,4.24236692]
[1756925698774,0.1929,4466.1,4466.0,4.0292]
[1756925698976,0.5282,4466.5,4466.2,0.6972]
[1756925699177,0.59177946,4466.4,4466.3,1.73176692]
[1756925700675,1.08687946,4466.4,4466.3,1.73176692]
[1756925701179,0.78467946,4466.4,4466.3,1.73176692]
[1756925701376,0.59177946,4466.4,4466.3,1.73176692]
[1756925701881,0.08532,4467.1,4467.0,0.1242]
[1756925702080,0.08532,4467.1,4467.0,1.56956692]
[1756925702276,0.67734293,4467.1,4467.0,1.85596692]
[1756925702676,1.37714293,4467.1,4467.0,1.73176692]
[1756925702877,1.37714293,4467.1,4467.0,0.6972]
[1756925705281,0.1173,4467.0,4466.8,3.2078]
[1756925705482,0.1929,4466.3,4466.2,3.6994]
[1756925705683,0.1929,4466.3,4466.2,4.93956692]
[1756925706484,0.4951,4466.3,4466.2,4.93956692]
[1756925707182,1.08737914,4466.3,4466.2,4.93956692]
[1756925707488,0.59227914,4466.3,4466.2,5.14535909]
[1756925707686,0.31132,4467.1,4466.2,5.14535909]
[1756925707884,0.59236416,4467.0,4466.5,0.1242]
[1756925708091,0.4951,4467.0,4466.9,0.4108]
[1756925708386,1.08754317,4467.0,4466.9,0.4108]
[1756925708584,1.08754317,4467.0,4466.9,0.6972]
[1756925709189,0.59244317,4467.0,4466.9,0.6972]
[1756925709782,1.29224317,4467.0,4466.9,0.6972]
[1756925709989,1.40954317,4467.0,4466.9,0.2052]
[1756925710290,0.6998,4466.3,4466.2,3.905]
[1756925710493,1.29224317,4466.3,4466.2,3.905]
[1756925710683,0.78534317,4466.3,4466.2,3.905]
[1756925710889,1.08754317,4466.3,4466.2,3.905]
[1756925711797,0.78534317,4466.3,4466.2,3.905]
[1756925712094,0.59244317,4466.3,4466.2,3.905]
[1756925712296,0.59244317,4466.3,4466.2,3.6186]
[1756925712485,0.59295584,4466.6,4466.5,0.8016]
[1756925714696,0.59295584,4466.6,4466.5,5.0276]
[1756925715198,0.79142,4467.1,4467.0,0.4001]
[1756925715387,1.38468244,4467.1,4467.0,0.6844]
[1756925715694,1.38468244,4467.1,4466.9,1.24035909]
[1756925715695,1.38468244,4467.1,4466.8,3.2078]
[1756925715897,0.7061,4466.9,4466.8,3.8922]
[1756925716097,0.80026244,4466.9,4466.8,3.8922]
[1756925716298,0.59326244,4466.9,4466.8,3.8922]
[1756925716998,1.10756244,4466.9,4466.8,3.8922]
[1756925717200,2.30706574,4466.9,4466.8,3.8922]
[1756925717404,2.49886574,4466.9,4466.8,3.8922]
[1756925718295,1.79276574,4466.9,4466.8,5.13255909]
[1756925718496,1.1995033,4466.9,4466.8,5.13255909]
[1756925719404,0.80026244,4466.9,4466.8,5.13255909]
[1756925719605,1.29936244,4466.9,4466.8,5.13255909]
[1756925720813,0.80026244,4466.9,4466.8,5.13255909]
[1756925722307,1.20240258,4466.9,4466.8,5.13255909]
[1756925722611,1.79566502,4466.9,4466.8,5.13255909]
[1756925722811,1.20240258,4466.9,4466.8,5.13255909]
[1756925723012,1.79566502,4466.9,4466.8,5.13255909]
[1756925723413,1.20240258,4466.9,4466.8,5.13255909]
[1756925723708,1.79566502,4466.9,4466.8,5.13255909]
[1756925724017,2.00266502,4466.9,4466.8,5.13255909]
[1756925724712,1.79566502,4466.9,4466.8,5.13255909]
[1756925724914,0.59326244,4466.9,4466.8,9.35642909]
[1756925725216,0.59326244,4467.0,4466.8,9.07212909]
[1756925725417,0.59326244,4467.0,4466.9,1.13427]
[1756925725917,0.59326244,4467.0,4466.9,0.9104]
[1756925726216,0.59326244,4467.0,4466.9,2.15075909]
[1756925734520,0.08532,4467.1,4466.9,2.15075909]
[1756925734720,1.20240258,4468.2,4467.7,1.64045909]
[1756925735021,0.7061,4467.9,4467.8,0.6844]
[1756925735717,0.207,4468.4,4468.3,0.2017]
[1756925735918,0.7061,4468.4,4468.3,0.2017]
[1756925736118,0.7061,4468.4,4468.3,0.4001]
[1756925736318,0.7061,4468.6,4468.5,0.6844]
[1756925736520,0.7061,4468.6,4468.5,0.2017]
[1756925736711,0.3988,4468.4,4468.3,3.4095]
[1756925736916,0.7061,4468.4,4468.3,3.6938]
[1756925737125,0.7061,4468.4,4468.3,3.8922]
[1756925740328,0.7061,4468.4,4468.3,3.4095]
[1756925740918,0.7061,4468.4,4468.3,3.8922]
[1756925741129,0.7061,4468.4,4468.3,3.4095]
[1756925741922,0.7061,4468.4,4468.3,3.8996]
[1756925743925,0.207,4468.4,4468.3,3.8996]
[1756925744132,0.7048,4468.4,4468.3,3.8996]
[1756925746028,0.17,4468.9,4468.7,0.3953]
[1756925746331,0.6486,4468.9,4468.8,1.92095909]
[1756925746531,1.23738993,4468.9,4468.8,1.92095909]
[1756925746927,1.23738993,4468.9,4468.8,5.12875909]
[1756925749429,0.94768993,4468.9,4468.8,5.12875909]
[1756925749629,0.75878993,4468.9,4468.8,5.12875909]
[1756925751535,0.94768993,4468.9,4468.8,5.12875909]
[1756925751836,1.23738993,4468.9,4468.8,5.12875909]
[1756925752937,1.44548993,4468.9,4468.8,5.12875909]
[1756925753839,0.94768993,4468.9,4468.8,5.12875909]
[1756925756640,0.75878993,4468.9,4468.8,5.12875909]
[1756925758240,1.44548993,4468.9,4468.8,5.12875909]
[1756925759135,2.64789251,4468.9,4468.8,5.12875909]
[1756925760535,0.397,4468.4,4468.3,3.3983]
[1756925760742,0.6867,4468.4,4468.3,3.8884]
[1756925760942,1.27548993,4468.4,4468.3,3.8884]
[1756925762141,2.47688598,4468.4,4468.3,3.8884]
[1756925763043,2.47688598,4468.4,4468.3,5.12875909]
[1756925764246,1.27548993,4468.4,4468.3,5.12875909]
[1756925766040,0.58878993,4468.4,4468.3,5.12875909]
[1756925767238,0.58878993,4468.6,4468.3,4.84345909]
[1756925767446,0.4786,4468.6,4468.5,1.834416]
[1756925767839,1.068995,4468.6,4468.5,1.834416]
[1756925768039,1.277095,4468.6,4468.5,1.713416]
[1756925771547,1.277095,4468.6,4468.3,3.2078]
[1756925771548,6.020211,4468.6,4468.3,3.2078]
[1756925771749,0.1918,4468.1,4468.0,1.221516]
[1756925771946,0.3833,4468.1,4468.0,1.841616]
[1756925772250,0.6682,4468.1,4468.0,1.841616]
[1756925772444,1.258595,4468.1,4468.0,1.841616]
[1756925773152,1.258595,4468.1,4468.0,0.8088]
[1756925773449,0.590395,4468.1,4468.0,1.841616]
[1756925773843,0.781895,4468.1,4468.0,1.841616]
[1756925774040,1.066795,4468.1,4468.0,1.841616]
[1756925776650,1.06626843,4468.1,4468.0,1.841616]
[1756925779453,0.78136843,4468.1,4468.0,1.841616]
[1756925779650,0.58986843,4468.1,4468.0,1.841616]
[1756925779949,1.06626843,4468.1,4468.0,1.841616]
[1756925782153,0.58986843,4468.1,4468.0,1.841616]
[1756925784455,1.06626843,4468.1,4468.0,1.841616]
[1756925785755,0.78136843,4468.1,4468.0,1.841616]
[1756925786149,1.06626843,4468.1,4468.0,1.841616]
[1756925790959,1.06640098,4468.1,4468.0,1.841616]
[1756925793258,1.06640098,4468.1,4468.0,2.065426]
[1756925793259,0.59000098,4468.1,4468.0,2.065426]
[1756925793451,0.4764,4469.0,4468.9,0.3044]
[1756925793760,0.4764,4469.0,4468.9,3.8936]
[1756925794258,0.6682,4469.0,4468.9,3.8936]
[1756925795763,0.6682,4469.0,4468.9,4.926416]
[1756925799366,0.787,4469.0,4468.9,3.4005]
[1756925799665,0.6682,4469.0,4468.9,3.8936]
[1756925801862,0.3124,4469.3,4468.9,3.8936]
[1756925802067,0.3124,4469.3,4469.2,1.032816]
[1756925802068,0.5173,4469.3,4469.2,1.032816]
[1756925802263,0.5173,4469.3,4469.2,1.428816]
[1756925802673,0.5173,4469.3,4469.2,1.738416]
[1756925803062,3.2078,4469.8,4469.3,0.3096]
[1756925803262,3.6012,4469.8,4469.7,1.738416]
[1756925803463,0.3934,4469.8,4469.7,1.738416]
[1756925803861,0.7058,4469.8,4469.7,1.738416]
[1756925804459,0.7058,4469.8,4469.7,0.7056]
[1756925804756,0.3124,4469.7,4469.5,3.2078]
[1756925804956,0.5173,4469.4,4469.3,1.738416]
[1756925805160,0.5147,4470.0,4469.9,0.2]
[1756925805357,1.0531,4470.0,4469.9,0.5096]
[1756925805557,1.63715914,4470.0,4469.9,0.5096]
[1756925809965,1.63715914,4470.0,4469.9,0.2]
[1756925810174,0.7058,4469.4,4469.3,3.7174]
[1756925810372,1.28985914,4469.4,4469.3,3.7174]
[1756925810865,1.51585914,4469.4,4468.8,3.2078]
[1756925811071,1.738616,4468.9,4468.8,3.2078]
[1756925811264,2.32267514,4468.9,4468.8,3.2078]
[1756925811672,1.28985914,4468.9,4468.8,3.4078]
[1756925812064,1.28985914,4468.9,4468.8,3.7174]
[1756925812776,1.28985914,4468.9,4468.8,3.2078]
[1756925813364,1.90718195,4468.9,4468.8,3.2078]
[1756925813559,2.49124109,4468.9,4468.8,3.2078]
[1756925815174,1.28985914,4468.9,4468.8,3.2078]
[1756925816068,1.28985914,4468.9,4468.8,3.4078]
[1756925816273,1.28985914,4468.9,4468.8,3.9134]
[1756925817175,1.28985914,4468.9,4468.8,3.7174]
[1756925817472,1.28985914,4468.9,4468.8,0.5096]
[1756925821974,0.89645914,4468.9,4468.8,0.7056]
[1756925822170,1.20170966,4469.3,4468.8,0.92936999]
[1756925822377,4.40950966,4469.9,4469.8,0.3096]
[1756925822569,3.2078,4469.9,4469.8,0.7056]
[1756925822769,0.2049,4469.9,4469.8,0.396]
[1756925823372,0.2049,4469.9,4469.8,0.7056]
[1756925825166,0.5173,4469.9,4469.8,0.7056]
[1756925827873,0.7433,4469.9,4469.8,0.7056]
[1756925829073,0.9318,4469.9,4469.8,0.7056]
[1756925830175,0.7058,4469.9,4469.8,0.7056]
[1756925830370,0.9318,4469.9,4469.8,0.7056]
[1756925830877,0.5173,4469.9,4469.8,0.7056]
[1756925831068,0.7433,4469.9,4469.8,0.7056]
[1756925832476,0.9318,4469.9,4469.8,0.7056]
[1756925833175,0.3905,4469.4,4469.3,0.3974]
[1756925833479,0.3905,4469.4,4469.3,0.6828]
[1756925833870,0.7006,4469.4,4469.3,0.6828]
[1756925834277,1.27857369,4469.4,4469.3,0.6828]
[1756925836378,1.08577369,4469.4,4469.3,0.6828]
[1756925836676,0.57797369,4469.4,4469.3,0.6828]
[1756925838877,0.88807369,4469.4,4469.3,0.6828]
[1756925839077,1.08577369,4469.4,4469.3,0.6828]
[1756925839278,1.27857369,4469.4,4469.3,0.6828]
[1756925839870,1.08577369,4469.4,4469.3,0.6828]
[1756925840372,1.27857369,4469.4,4469.3,0.6828]
[1756925842476,0.57797369,4469.4,4469.3,0.6828]
[1756925844085,1.08577369,4469.4,4469.3,0.6828]
[1756925844378,1.27857369,4469.4,4469.3,0.6828]
[1756925845082,1.08577369,4469.4,4469.3,0.6828]
[1756925846973,0.57797369,4469.4,4469.3,0.6828]
[1756925847479,1.20170966,4470.0,4469.4,0.0173]
[1756925847686,0.3101,4470.2,4470.0,0.0173]
[1756925847978,0.3101,4470.2,4470.1,1.52027326]
[1756925848185,0.5078,4470.2,4470.1,1.52027326]
[1756925849177,0.5078,4470.2,4470.1,1.69606572]
[1756925849483,0.3101,4470.2,4470.1,1.71336572]
[1756925850179,0.3101,4470.2,4470.1,1.69606572]
[1756925851081,0.5078,4470.2,4470.1,1.69606572]
[1756925851580,0.1188,4470.5,4470.1,1.69606572]
[1756925851786,0.4289,4470.5,4470.4,3.2805]
[1756925851981,0.4289,4470.5,4470.4,3.2632]
[1756925852177,0.6266,4470.5,4470.4,3.2632]
[1756925852484,0.8194,4470.5,4470.4,3.2632]
[1756925857184,0.8194,4470.5,4470.4,4.50207326]
[1756925857388,0.4289,4470.5,4470.4,4.51937326]
[1756925858583,0.3101,4470.9,4470.4,4.74537326]
[1756925858888,0.3161,4471.0,4470.9,0.0554]
[1756925859489,1.20112539,4471.0,4470.9,0.0554]
[1756925859788,1.20112539,4471.0,4470.9,3.2632]
[1756925859989,1.39392539,4471.0,4470.9,3.2078]
[1756925866791,1.61992539,4471.0,4470.9,3.2078]
[1756925867985,0.119,4470.5,4470.3,3.2078]
[1756925868185,0.7205,4470.4,4470.3,3.2624]
[1756925868386,1.29577412,4470.4,4470.3,3.2624]
[1756925870890,1.29577412,4470.4,4468.0,1.23887326]
[1756925870891,0.5298,4470.0,4469.9,0.0273]
[1756925871189,0.119,4470.0,4469.7,1.23887326]
[1756925871393,0.3252,4470.0,4469.9,0.0546]
[1756925871592,0.8395,4470.0,4469.9,0.0546]
[1756925871789,1.41497573,4470.0,4469.7,1.23887326]
[1756925871992,0.7205,4469.8,4469.7,1.26617326]
[1756925872299,1.29597573,4469.8,4469.7,1.29347326]
[1756925873301,1.29597573,4469.8,4469.7,4.50127326]
[1756925873598,1.09137573,4469.8,4469.7,4.50127326]
[1756925874098,1.29597573,4469.8,4469.7,4.50127326]
[1756925876101,1.29597573,4469.8,4469.7,3.2624]
[1756925876503,1.29597573,4469.8,4469.7,3.2078]
[1756925877302,1.52197573,4469.8,4469.7,3.2078]
[1756925880704,1.52197573,4469.8,4469.7,3.2351]
[1756925881496,1.52197573,4469.8,4469.7,3.2624]
[1756925889312,1.52197573,4469.8,4469.7,3.2351]
[1756925889512,1.52197573,4469.8,4469.7,3.2624]
[1756925890813,1.31737573,4469.8,4469.7,3.2624]
[1756925891414,1.52197573,4469.8,4469.7,3.2624]
[1756925895514,1.52197573,4469.8,4469.7,3.2078]
[1756925895720,1.52197573,4469.8,4469.7,3.2359]
[1756925896020,1.52197573,4469.8,4469.7,3.264]
[1756925900633,1.31737573,4469.8,4469.7,3.2816]
[1756925901231,2.51841624,4469.8,4469.7,3.2816]
[1756925901432,1.31737573,4469.8,4469.7,3.264]
[1756925902128,1.31737573,4469.8,4469.7,7.73132999]
[1756925902129,0.57547573,4469.8,4469.7,7.73132999]
[1756925902727,0.57547573,4469.8,4469.7,7.5076]
[1756925902931,0.57547573,4469.8,4469.7,7.73132999]
[1756925903724,0.57547573,4469.8,4469.7,7.5076]
[1756925905730,0.87217573,4469.8,4469.7,7.5076]
[1756925905929,0.57547573,4469.8,4469.7,7.5076]
[1756925908933,0.2967,4470.1,4469.8,0.0176]
[1756925909133,0.2967,4470.1,4470.0,1.08868189]
[1756925909330,0.2967,4470.1,4470.0,1.10628189]
[1756925909528,0.87199281,4470.1,4470.0,1.10628189]
[1756925911029,0.57529281,4470.1,4470.0,1.10628189]
[1756925911238,0.2967,4470.5,4470.0,2.13876378]
[1756925911452,0.2967,4470.5,4470.4,4.31408189]
[1756925911735,0.2967,4470.5,4470.4,4.54008189]
[1756925911928,0.871859,4470.5,4470.4,4.54008189]
[1756925912128,0.993159,4470.5,4470.4,4.54008189]
[1756925912329,0.871859,4470.5,4470.4,4.54008189]
[1756925915232,0.993159,4470.5,4470.4,4.54008189]
[1756925917243,1.378359,4470.5,4470.4,3.2078]
[1756925923750,1.378359,4470.5,4470.4,3.236]
[1756925931459,0.113,4470.0,4469.8,3.2078]
[1756925931751,2.51884089,4469.9,4469.8,3.2078]
[1756925940254,0.6852,4469.4,4469.3,3.2078]
[1756925940559,1.486359,4469.4,4469.3,3.2642]
[1756925942454,1.102059,4469.4,4469.3,3.2818]
[1756925945265,1.102059,4469.4,4469.3,4.31428189]
[1756925946067,0.575159,4469.4,4469.3,8.54028189]
[1756925946268,0.3009,4469.9,4469.8,0.0564]
[1756925946472,0.87518586,4469.9,4469.8,4.29668189]
[1756925946861,1.07008586,4469.9,4469.8,4.29668189]
[1756925947870,1.07008586,4469.9,4469.8,3.2642]
[1756925948265,0.87518586,4469.9,4469.8,3.2818]
[1756925950379,1.07008586,4469.9,4469.8,3.2642]
[1756925951775,1.25948586,4469.9,4469.8,3.2642]
[1756925955777,0.87518586,4469.9,4469.8,3.2819]
[1756925957985,1.06878586,4469.9,4469.8,3.2642]
[1756925958189,1.18334051,4471.0,4470.9,0.0177]
[1756925958388,0.3088,4471.7,4470.9,4.67153888]
[1756925958589,0.6944,4471.7,4471.6,3.2078]
[1756925958889,0.8134,4471.7,4471.6,3.2078]
[1756925959686,4.8134,4471.7,4471.6,3.2078]
[1756925960985,4.6944,4471.7,4471.1,3.2078]
[1756925961190,0.6944,4471.2,4471.1,3.2078]
[1756925970091,1.26482083,4471.2,4471.1,3.2078]
[1756925972097,0.1222,4471.5,4471.1,3.2078]
[1756925972297,0.3088,4471.7,4471.4,1.23873888]
[1756925972493,0.5024,4471.7,4471.6,3.2078]
[1756925972892,1.07278682,4471.7,4471.6,3.2078]
[1756925974900,1.26478682,4471.7,4471.6,3.2078]
[1756925977196,0.87918682,4471.7,4471.6,3.2078]
[1756925977501,1.07278682,4471.7,4471.6,3.2078]
[1756925978395,1.26478682,4471.7,4471.6,3.2078]
[1756925982200,1.07278682,4471.7,4471.6,3.2078]
[1756925982993,0.87918682,4471.7,4471.6,3.2078]
[1756925983393,0.57038682,4471.7,4471.6,3.2078]
[1756925986606,0.88278682,4471.7,4471.6,3.2078]
[1756925986803,1.07198682,4471.7,4471.6,3.4328]
[1756925987805,1.07198682,4471.7,4471.6,3.2078]
[1756925988005,1.27678682,4471.7,4471.6,3.2078]
[1756925989500,0.88278682,4471.7,4471.6,3.2078]
[1756925990303,1.27678682,4471.7,4471.6,3.2078]
[1756925992600,0.88278682,4471.7,4471.6,3.2078]
[1756925993702,1.27678682,4471.7,4471.6,3.2078]
[1756925994109,1.07198682,4471.7,4471.6,3.2078]
[1756925995404,0.88278682,4471.7,4471.6,3.2078]
[1756925998811,1.07198682,4471.7,4471.6,3.2078]
[1756926000212,1.27678682,4471.7,4471.6,3.2078]
[1756926000714,0.394,4471.1,4471.0,3.2078]
[1756926000911,1.27678682,4471.1,4471.0,3.2078]
[1756926001106,1.50178682,4471.1,4471.0,3.2078]
[1756926002816,0.394,4470.6,4470.5,3.2078]
[1756926003113,0.7064,4470.6,4470.5,3.2078]
[1756926003307,1.27678682,4470.6,4470.5,3.2078]
[1756926007508,1.50178682,4470.6,4470.5,3.2078]
[1756926010725,1.27678682,4470.6,4470.5,3.2078]
[1756926010922,1.50178682,4470.6,4470.5,3.2078]
[1756926017119,0.57038682,4470.6,4470.5,4.23980686]
[1756926017322,0.3094,4471.5,4470.5,8.23980686]
[1756926017529,1.28648173,4471.4,4471.3,1.03200686]
[1756926017721,1.48618173,4471.4,4471.3,1.03200686]
[1756926018622,0.87338173,4471.4,4471.3,1.03200686]
[1756926018826,0.79548173,4471.4,4471.3,1.03200686]
[1756926020026,0.87338173,4471.4,4471.3,1.03200686]
[1756926020328,1.06148173,4471.4,4471.3,1.03200686]
[1756926020926,1.26118173,4471.4,4471.1,3.2078]